Workbook

Sheet Sheet1
B1: 2 Stroke Calculators | F1: web page | H1: (data entry cells are light blue)
F2: by Michael Forrest | H2: (distances are in millimeters unless stated otherwise) | M2: Longer Stinger Diameter
F3: updated Dec 9 '23 | J3: meters | K3: feet | M3: mm length | N3: inner diameter | O3: C.S. area
A4: vertical ring mm | B4: Safe Top RPM | F4: Cranking Engine PSI | J4: 2 | K4: =J4/0.3048 -> 6.56167979 | L4: original dimensions: | M4: 100 | N4: 26.6 | O4: =3.14*(N4/2)^2 -> 555.4346
A5: 1.75 | C5: average piston m/sec velocity | D5: max allow- | E5: =((25*60)/B7)*500 -> 18115.94203 | F5: engine | K5: millimeters
A6: top RPM | B6: piston stroke | C6: =((2*(A7/1000)*B7)/60) -> 17.94 | D6: able RPM | E6: =(38.5/A5)*A7/C6 -> 15942.02899 | F6: compr ratio | G6: feet elevation | H6: cranking psi | J6: inches | K6: (mm) | M6: new longer length | N6: new diameter | O6: C. S. area
A7: 13000 | B7: 41.4 | C7: maximum piston m/sec velocity | D7: =IF(E6<E5,E6,E5) -> 15942.02899 | F7: 7 | G7: 0 | H7: =((((F7-6)*34.8)+121)*(1-(0.14-(8-F7)*0.02)))/(1+G7*0.000075) -> 137.104 | J7: 1 | K7: =J7*25.4 -> 25.4 | L7: new dimensions: | M7: 400 | N7: =IF(M7>200,N9,M9) -> 35.78663997 | O7: =3.14*(N7/2)^2 -> 1005.336626
C8: =C6*1.61 -> 28.8834 | M8: =(1+(((M7/M4)-1)*0.22))*O4 -> 922.021436 | N8: =(1+(((M7/M4)-1)*0.27))*O4 -> 1005.336626
A9: trapped cc | B9: engine compression ratio | F9: head volume | I9: Maximum Delivery Ratio RPM | M9: =2*SQRT(M8/3.14) -> 34.27170261 | N9: =2*SQRT(N8/3.14) -> 35.78663997
A10: above exhaust | C10: engine | E10: above exhaust | F10: engine | G10: above | J10: crankcase | K10: mm from top | N10: maximum
A11: port (ml) | B11: above TDC cc | C11: compression ratio | E11: port cc (ml) | F11: compr ratio | G11: TDC cc | I11: cylinder | J11: compression | K11: of transfers | L11: Intake | M11: Crankcase | N11: delivery
A12: 72.5 | B12: 8.4 | C12: =A12/B12 -> 8.630952381 | E12: 60 | F12: 7.1 | G12: =E12/F12 -> 8.450704225 | I12: bore mm | J12: ratio | K12: to TDC | L12: Volume cc | M12: Volume cc | N12: ratio RPM
A13: (same in oz.) | B13: (same in oz.) | C13: Compression Ratio | I13: 40 | J13: 1.1 | K13: 32 | L13: =(3.14*(I13/20)^2)*(K13/10) -> 40.192 | M13: =L13/(J13-1) -> 401.92 | N13: =SQRT(K13/M13)*19813 -> 5590.561377
A14: 2.03 | B14: 0.29 | C14: =A14/B14 -> 7 | J14: Crankcase PSI max
J15: =((J13-1)/5.5)*80 -> 1.454545455
B16: Mikuni jet crossover | F16: trapped engine volume
A17: Mikuni 4/042 | B17: equivalent | E17: above exhaust | F17: mm piston edge | I17: trapped | J17: piston dome | K17: above piston cc | L17: engine
A18: main jet | B18: N100.64 jet | C18: hole diameter | E18: port mm | F18: to cylinder top | G18: cylinder bore | H18: head cc | I18: engine cc | J18: cc volume | K18: @ TDC | L18: compr ratio | M18: feet elevation | N18: cranking psi
A19: 150 | B19: =(2*SQRT((A19*0.00772)/3.14))/0.01066 -> 113.9363353 | C19: =2*SQRT(((A19/80)*0.5)/3.14) -> 1.092825474 | E19: 24.1 | F19: 1 | G19: 40 | H19: 4.4 | I19: =K21+K22+K23+K25-K24 -> 33.8696 | J19: =SUM(H27:I27) -> 0.8 | K19: =K21+K22+K23-K24 -> 4.856 | L19: =I19/K19 -> 6.974794069 | M19: 0 | N19: =((((L19-6)*34.8)+121)*(1-(0.14-(8-L19)*0.02)))/(1+M19*0.000075) -> 136.4101931
H20: head gasket | K20: cc volume
A21: Mikuni N100.64 | B21: equivalent | E21: ounces | F21: cubic centimeters | H21: mm thickness | K21: =H19 -> 4.4 | L21: head
A22: main jet | B22: 4/042 jet | C22: hole diameter | E22: 1 | F22: =E22*29.57 -> 29.57 | H22: 0 | K22: =3.14*(G19/20)^2*(H22/10) -> 0 | L22: gasket
A23: 114 | B23: =((((A23*0.01066)/2)^2)*3.14)/0.00772 -> 150.167679 | C23: =A23*0.0096 -> 1.0944 | H23: piston dome | I23: raised flat piston | K23: =3.14*(G19/20)^2*(F19/10) -> 1.256 | L23: deck
E24: cc | F24: ounces | H24: mm height | I24: top mm height | K24: =J19 -> 0.8 | L24: piston dome
B25: engine size (conventional) | E25: 30 | F25: =E25/29.57 -> 1.014541765 | H25: 0 | I25: 0.5 | K25: =((E19-F19)/10)*3.14*(G19/20)^2 -> 29.0136 | L25: port to TDC
A26: cyl bore mm | B26: stroke mm | C26: cc size | H26: (Only fill in one of the two above)
A27: 40 | B27: 6.6 | C27: =0.785*((A27/10)^2)*(B27/10) -> 8.2896 | H27: =(3.14*(H25/10)*(3*(G19/20)^2+(H25/10)^2))/6 -> 0 | I27: =((G19/10)^2)*(I25/10) -> 0.8 | J27: This chart shows what the bike manufacturers went by, increasing the velocity for small engines
D28: Carb Air Speed & Size Calculator | G28: website page | J28: to emphasize mid range power so the engine could carry the RPM up to the pipe powerband.
D29: mm carb | E29: Intake | F29: Carb Flow | I29: mm ideal
A30: engine cc | B30: transfer duration | C30: max RPM | D30: diameter | E30: Volume L/min | F30: Velocity m/sec | G30: type of riding | H30: ideal velocity | I30: carb diameter
A31: 250 | B31: 125 | C31: 8000 | D31: 38 | E31: =(A31*B33*C31)/1000 -> 1552 | F31: =(E31*0.167)/D34 -> 22.86500697 | G31: enduro/street | H31: =H32+15 -> 38.94285714 | I31: =20*SQRT(((E31*0.167)/H31)/3.14) -> 29.11758554
A32: cylinder bore | B32: vol. efficiency | D32: cm^2 carb | E32: =(A31*B33*1250)/1000 -> 242.5 | G32: racing | H32: =18*((A31*B33)/C31-0.00886)/0.0399+17 -> 23.94285714 | I32: =20*SQRT(((E31*0.167)/H32)/3.14) -> 37.13481618
A33: 66 | B33: =IF(B31>125,0.776-(B31-125)*0.0036,IF(B31>120,0.793-(B31-120)*0.0034,IF(B31>115,0.809-(B31-115)*0.0033,IF(B31>110,0.825-(B31-110)*0.0032,IF(B31>105,0.84-(B31-105)*0.003,0.84+(105-B31)*0.0028))))) -> 0.776 | D33: area | H33: % cutaway | I33: max carb size
A34: compression ratio | B34: ft elevation | C34: cranking PSI | D34: =3.14*(D31/20)^2 -> 11.3354 | H34: 10 | I34: =SQRT(((0.167*A31*B33*C31)/(((H34-10)*0.52+14.2)*1000))/3.14)*20 -> 48.21976544
A35: 8.5 | B35: 500 | C35: =((((A35-6)*34.8)+121)*(1-(0.14-(8-A35)*0.02)))/(1+B35*0.000075) -> 170.4096386 | D35: idle slide area | E35: idle slide height | G35: This figures in the bore and compression ratio:
C36: =(((78.1-A33)*0.004)+1)*IF(A35<8,A35/9.9,IF(AND(A35>=8,A35<10),A35/9.3,IF(AND(A35>=10,A35<12),A35/8.55,IF(A35>=12,A35/7.5,0)))) -> 0.9582150538 | D36: =0.516*E32 -> 125.13 | E36: =IF(AND(D37>0.026,D37<=0.0723),((D37-0.0463)/0.0273)*0.0315+0.0625,IF(AND(D37>0.0723,D37<=0.0996),((D37-0.0723)/0.0273)*0.0315+0.125,IF(AND(D37>0.0996,D37<=0.129),((D37-0.0996)/0.0294)*0.0315+0.156,IF(AND(D37>0.129,D37<=0.162),((D37-0.129)/0.033)*0.0315+0.1875,IF(AND(D37>0.162,D37<=0.196),((D37-0.162)/0.034)*0.0315+0.219,IF(AND(D37>0.196,D37<=0.268),((D37-0.196)/0.072)*0.0315+0.25,0))))))*D31 -> 6.367253963 | G36: type of riding | H36: ideal velocity | I36: carb diameter
D37: =D36/(D34*100) -> 0.1103886938 | G37: enduro/street | H37: =H38+15 -> 37.94240614 | I37: =20*SQRT(((E31*0.167)/H37)/3.14) -> 29.49896859
G38: racing | H38: =C36*H32 -> 22.94240614 | I38: see web page
A39: piston stroke | B39: 50 | C39: Hot Port Durations Calculator | I39: =20*SQRT(((E31*0.167)/H38)/3.14) -> 37.93584689
A40: Con Rod mm | B40: 110 | G40: website page
A41: Above Port mm | C41: exhaust | D41: =(1-(B40/B39-2.1)*0.0577) -> 0.99423 | E41: exhaust | F41: =(1-(B40/B39-2.1)*0.0577) -> 0.99423 | G41: transfers | H41: =(1-(B40/B39-2.1)*0.0296) -> 0.99704
A42: cold | B42: hot | C42: duration | D42: above port | E42: duration | F42: above port | G42: duration | H42: above port
A43: exhaust cold | B43: exhaust hot | C43: 205 | D43: =0.4494*D41*B39 -> 22.3403481 | E43: 207.5 | F43: =0.4382*B39*F41 -> 21.7835793 | G43: 130 | H43: =0.761*B39*H41 -> 37.937372
A44: 27.85 | B44: =A44+(9.6*B40+6.5*B39)/5445 -> 28.10362718 | C44: 200 | D44: =0.4717*D41*B39 -> 23.44891455 | E44: 202.5 | F44: =0.4605*B39*F41 -> 22.89214575 | G44: 127.5 | H44: =0.7694*B39*H41 -> 38.3561288
A45: transfers cold | B45: transfers hot | C45: 195 | D45: =0.4941*D41*B39 -> 24.56245215 | E45: 197.5 | F45: =0.4829*B39*F41 -> 24.00568335 | G45: 125 | H45: =0.778*B39*H41 -> 38.784856
A46: 39 | B46: =A46+(9.6*B40+6.5*B39)/5445 -> 39.25362718 | C46: 190 | D46: =0.5162*D41*B39 -> 25.6610763 | E46: 192.5 | F46: =0.5051*B39*F41 -> 25.10927865 | G46: 122.5 | H46: =0.7865*B39*H41 -> 39.208598
C47: 185 | D47: =0.5385*D41*B39 -> 26.76964275 | E47: 187.5 | F47: =0.5273*B39*F41 -> 26.21287395 | G47: 120 | H47: =0.795*B39*H41 -> 39.63234
A48: Estimated Durations | C48: 180 | D48: =0.5604*D41*B39 -> 27.8583246 | E48: 182.5 | F48: =0.5494*B39*F41 -> 27.3114981 | G48: 117.5 | H48: =0.8034*B39*H41 -> 40.0510968
A49: exhaust cold | B49: exhaust hot | C49: 175 | D49: =0.582*D41*B39 -> 28.932093 | E49: 177.5 | F49: =0.5712*B39*F41 -> 28.3952088 | G49: 115 | H49: =0.8114*B39*H41 -> 40.4499128
A50: =IF(AND(A44>D43,A44<=D44),205-((A44-D43)/(D44-D43))*5,IF(AND(A44>D44,A44<=D45),200-((A44-D44)/(D45-D44))*5,IF(AND(A44>D45,A44<=D46),195-((A44-D45)/(D46-D45))*5,IF(AND(A44>D46,A44<=D47),190-((A44-D46)/(D47-D46))*5,IF(AND(A44>D47,A44<=D48),185-((A44-D47)/(D48-D47))*5,IF(AND(A44>D48,A44<=D49),180-((A44-D48)/(D49-D48))*5,IF(AND(A44>D49,A44<=D50),175-((A44-D49)/(D50-D49))*5,IF(AND(A44>D50,A44<=D51),170-((A44-D50)/(D51-D50))*5,IF(AND(A44>D51,A44<=D52),165-((A44-D51)/(D52-D51))*5,0))))))))) -> 180.0382325 | B50: =IF(AND(B44>D43,B44<=D44),205-((B44-D43)/(D44-D43))*5,IF(AND(B44>D44,B44<=D45),200-((B44-D44)/(D45-D44))*5,IF(AND(B44>D45,B44<=D46),195-((B44-D45)/(D46-D45))*5,IF(AND(B44>D46,B44<=D47),190-((B44-D46)/(D47-D46))*5,IF(AND(B44>D47,B44<=D48),185-((B44-D47)/(D48-D47))*5,IF(AND(B44>D48,B44<=D49),180-((B44-D48)/(D49-D48))*5,IF(AND(B44>D49,B44<=D50),175-((B44-D49)/(D50-D49))*5,IF(AND(B44>D50,B44<=D51),170-((B44-D50)/(D51-D50))*5,IF(AND(B44>D51,B44<=D52),165-((B44-D51)/(D52-D51))*5,0))))))))) -> 178.8577491 | C50: 170 | D50: =0.6035*D41*B39 -> 30.00089025 | E50: 172.5 | F50: =0.5927*B39*F41 -> 29.46400605 | G50: 112.5 | H50: =0.8193*B39*H41 -> 40.8437436
A51: transfers cold | B51: transfers hot | C51: 165 | D51: =0.6246*D41*B39 -> 31.0498029 | E51: 167.5 | F51: =0.614*B39*F41 -> 30.522861 | G51: 110 | H51: =0.827*B39*H41 -> 41.227604
A52: =IF(AND(A46>H43,A46<=H44),130-((A46-H43)/(H44-H43))*2.5,IF(AND(A46>H44,A46<=H45),127.5-((A46-H44)/(H45-H44))*2.5,IF(AND(A46>H45,A46<=H46),125-((A46-H45)/(H46-H45))*2.5,IF(AND(A46>H46,A46<=H47),122.5-((A46-H46)/(H47-H46))*2.5,IF(AND(A46>H47,A46<=H48),120-((A46-H47)/(H48-H47))*2.5,IF(AND(A46>H48,A46<=H49),117.5-((A46-H48)/(H49-H48))*2.5,IF(AND(A46>H49,A46<=H50),115-((A46-H49)/(H50-H49))*2.5,IF(AND(A46>H50,A46<=H51),112.5-((A46-H50)/(H51-H50))*2.5,IF(AND(A46>H51,A46<=H52),110-((A46-H51)/(H52-H51))*2.5,0))))))))) -> 123.7306899 | B52: =IF(AND(B46>H43,B46<=H44),130-((B46-H43)/(H44-H43))*2.5,IF(AND(B46>H44,B46<=H45),127.5-((B46-H44)/(H45-H44))*2.5,IF(AND(B46>H45,B46<=H46),125-((B46-H45)/(H46-H45))*2.5,IF(AND(B46>H46,B46<=H47),122.5-((B46-H46)/(H47-H46))*2.5,IF(AND(B46>H47,B46<=H48),120-((B46-H47)/(H48-H47))*2.5,IF(AND(B46>H48,B46<=H49),117.5-((B46-H48)/(H49-H48))*2.5,IF(AND(B46>H49,B46<=H50),115-((B46-H49)/(H50-H49))*2.5,IF(AND(B46>H50,B46<=H51),112.5-((B46-H50)/(H51-H50))*2.5,IF(AND(B46>H51,B46<=H52),110-((B46-H51)/(H52-H51))*2.5,0))))))))) -> 122.2343361 | C52: 160 | D52: =0.6458*D41*B39 -> 32.1036867 | E52: 162.5 | F52: =0.6352*B39*F41 -> 31.5767448 | G52: 107.5 | H52: =0.8347*B39*H41 -> 41.6114644
B54: NEEDLE CALCULATOR | E54: Engine Oil Weight Calculator, Grams | H54: Liters Gasoline Calculator
A55: (Start diameters | B55: Taper Angle Finder | D55: measured | E55: Engine Oil | G55: SynPlus | H55: measured grams of
A56: are "up" on the | B56: length between dia's | C56: start diameter (bigger) | D56: oil density | E56: grams of a volume of water | G56: 74 | H56: gasoline per liter | I56: 710 | J56: NOTES : | K56: ENGINE OIL | L56: Gas/Oil Ratio | M56: Oil Density
A57: needle and "end" | B57: 6 | C57: 2.13 | D57: =G57/G56 -> 0.9594594595 | E57: grams of same volume of oil | G57: 71 | K57: pure castor | L57: 50/1 | M57: 0.96
A58: diameters are | B58: end diameter | C58: taper angle (full) | E58: oil density | F58: gas/oil ratio | G58: 40 | H58: grams gasoline | I58: 280 | K58: SynPlus | L58: 30 @ 7000 | M58: 0.78
A59: down from there.) | B59: 1.805 | C59: =DEGREES(ATAN((C57-B59)/B57)) -> 3.10049145 | E59: 0.8 | F59: liters gasoline | G59: 0.39 | H59: liters gasoline | I59: =(I58/(I56/1000))/1000 -> 0.3943661972 | K59: Castor 927 | L59: 44 @ 7300 | M59: 0.97
B60: End Diameter Finder | E60: needed grams engine oil | G60: =((I56/1000)/E59)*((G59*1000)/G58) -> 8.653125 | I60: Blowdown Calculator | K60: Motul 510 | L60: 28 @ 7300 | M60: 0.87
B61: taper degrees | C61: start diameter | E61: Engine Oil Weight Calculator, Ounces | I61: exhaust duration | J61: 178 | K61: Super M | L61: 40 @ 7300 | M61: 0.86
B62: 2 | C62: 2.72 | D62: Measured | E62: Engine Oil | G62: SynPlus | I62: transfer duration | J62: 120 | K62: Motul 710 | L62: 35 @ 7300 | M62: 0.86
B63: segment length | C63: end of segment dia. | D63: Oil Density | E63: weighed ounces of a volume of water | G63: 2.8 | I63: peak power RPM | J63: 8000 | K63: Golden Spectro | L63: 45 @ 7800 | M63: 0.89
B64: 0.62 | C64: =C62-2*TAN(RADIANS((B62)/2))*B64 -> 2.698355719 | D64: =G64/G63 -> 0.9285714286 | E64: weighed ounces of same volume of oil | G64: 2.6 | I64: 1 or 3 port exhaust? | J64: 1 | K64: Redline Allsport | L64: 40 @ 7800 | M64: 0.86
B65: Taper Length Finder | E65: oil density | F65: gas/oil ratio | G65: 30 | H65: ? Grams of | I65: existing blowdown | J65: =(J61-J62)/2 -> 29 | K65: exhaust duration | L65: transfer duration
B66: taper degrees | C66: start diameter | E66: 0.93 | F66: gallons gasoline | G66: 0.25 | H66: 1 ltr water | I66: needed best blowdown | J66: =IF(J64=1,(J63-7500)/600+32.5,(J63-6750)/800+26.25) -> 33.33333333 | K66: =(J66*2)+J62 -> 186.6666667 | L66: =J61-(J66*2) -> 111.3333333 | M66: Change to this exhaust or transfer duration
B67: 1.57 | C67: 2.67 | E67: needed weighed ounces engine oil | G67: =(G63/G64)*((G66*128)/G65) -> 1.148717949 | I67: needed so-so blowdown | J67: =IF(J64=1,(J63-5250)/800+26.25,(J63-3500)/IF(J63>5000,800,400)+17.5) -> 29.6875 | K67: =(J67*2)+J62 -> 179.375 | L67: =J61-(J67*2) -> 118.625 | M67: (keeping the other existing one the same)
B68: end diameter | C68: length between diameters
B69: 2.515 | C69: =(C67-B69)/TAN(RADIANS(B67)) -> 5.655173873 | E69: Motorized Bicycle (Grubee 2 stroke) RPM Calculator | I69: Mikuni Main Jet | J69: Mikuni Idle Jet | K69: Keihin Main Jet | L69: Keihin Idle Jet | M69: Dellorto Jet
B70: Start Diameter Finder | E70: max MPH | F70: 22.5 | I70: Size Calculator | J70: Size Calculator | K70: Size Calculator | L70: Size Calculator | M70: Size Calculator
B71: taper degrees | C71: end diameter | E71: rear sprocket teeth | F71: 56 | I71: 4/042 main jet # | J71: 22/210 Idle Jet | K71: Main Jet # | L71: Idle Jet # | M71: Main or Idle Jet #
B72: 1 | C72: 2.105 | E72: ft tire circumference | F72: 6.66 | I72: 73 | J72: 7.5 | K72: 160 | L72: 70 | M72: 150
B73: segment length | C73: start diameter | E73: max RPM | F73: =(F70*5280*F71)/(2.43*60*F72) -> 6851.29574 | I73: N100/604 Main Jet | J73: hole diameter | K73: hole diameter | L73: hole diameter | M73: hole diameter
B74: 7.5 | C74: =2*TAN(RADIANS((B72)/2))*B74+C72 -> 2.235903017 | I74: 0 | J74: =2*SQRT(((J72/80)*0.5)/3.14) -> 0.2443632047 | K74: =IF(K72>90,(90+((K72-90)*0.81))/100,IF(K72=90,0.9,IF(K72<90,(90-((90-K72)*0.81))/100,0))) -> 1.467 | L74: =L72*0.01 -> 0.7 | M74: =M72*0.01 -> 1.5
E75: max KPH | F75: 46.2 | I75: mm hole diameter | J75: hole area | K75: hole area | L75: hole area | M75: hole area
B76: Motorized Bicycle (Grubee 2 stroke) Speed Calculator | E76: rear sprocket teeth | F76: 44 | I76: =IF(AND(I72>0,I74>0),0,IF(I72>0,2*SQRT((I78)/3.14),I74*0.0096)) -> 0.7623714259 | J76: =(((2*SQRT(((J72/80)*0.5)/3.14))/2)^2)*3.14 -> 0.046875 | K76: =3.14*(K74/2)^2 -> 1.689389865 | L76: =((L74/2)^2)*3.14 -> 0.38465 | M76: =((M74/2)^2)*3.14 -> 1.76625
B77: max RPM | C77: 9000 | E77: meters tire circ. | F77: 2.03 | I77: main jet hole area
B78: rear sprocket teeth | C78: 44 | E78: max RPM | F78: =(F75*1000*F76)/(2.43*60*F77) -> 6868.170853 | I78: =IF(AND(I72>0,I74>0),0,IF(I72>0,(I72/80)*0.5,((I76/2)^2)*3.14)) -> 0.45625
B79: feet tire circumference | C79: 6.66
B80: max MPH | C80: =(C77*0.243*(10/C78)*60*C79)/5280 -> 37.61730372 | E80: MPH to KPH | G80: KPH to MPH
E81: mph | F81: 60 | G81: kph | H81: 96.5
B82: max RPM | C82: 7300 | E82: kph | F82: =F81*1.609 -> 96.54 | G82: mph | H82: =H81*0.621 -> 59.9265
B83: rear sprocket teeth | C83: 44
B84: meters tire circumference | C84: 2.03
B85: max KPH | C85: =(C82*0.243*(10/C83)*60*C84)/1000 -> 49.10477727 | F85: Pipe Radius Calculator | H85: (see video)
F86: belly length in mm | G86: 220
B87: Pipe Powerband RPM Calculator | F87: pipe angle | G87: 60
B88: exhaust port duration | C88: 175 | F88: radius in mm | G88: =G86/RADIANS(G87) -> 210.0845249
A89: millimeters ==> | B89: piston to end of belly mm | C89: 670
B90: end of powerband RPM | C90: =(C88*40800)/C89 -> 10656.71642
B91: start of powerband RPM | C91: =0.73*C90 -> 7779.402985
B92: exhaust port duration | C92: 184 | E92: Pipe Cone Angle Calculator | H92: (from center)
A93: inches ==> | B93: piston to end of belly inches | C93: 23 | E93: cone length mm | F93: small end dia. | G93: large end dia. | H93: cone angle
B94: end of powerband RPM | C94: =(C92*1606)/C93 -> 12848 | E94: 220 | F94: 9.5 | G94: 70 | H94: =DEGREES(ATAN(((G94-F94)/2)/E94)) -> 7.82907651
B95: start of powerband RPM | C95: =0.73*C94 -> 9379.04
B96: Pipe Cone Pattern Maker | I96: Needle Shroud Calculator | L96: Equivalent Compression Ratio Calculator
A97: large diameter mm | B97: small end diameter | C97: pipe angle from center | D97: length a | E97: length b | F97: length of chord | G97: angle A | I97: shroud height | J97: % jetting change | L97: full stroke | M97: 170* exhaust above | N97: 180* exhaust above
A98: 70 | B98: 25 | C98: 8 | D98: =((A98/2)/SIN(RADIANS(C98)))-D99 -> 89.81620668 | E98: =D98+D99 -> 251.4853787 | F98: =2*D99*SIN(RADIANS((360*(A98*3.14)/(6.28*D99))/2)) -> 203.3450942 | G98: =360*(A98*3.14)/(6.28*D99) -> 77.93693654 | I98: +3mm height | J98: =(K98/K101)-1 -> 0.2903225806 | K98: =(J101+3)*18+78 -> 240 | L98: Compression Ratio | M98: port Compr. Ratio | N98: port Compr. Ratio
A99: (Dimeters are inner diameters plus sheet metal thickness) | D99: =((A98-B98)/2)/SIN(RADIANS(C98)) -> 161.669172 | I99: +2mm height | J99: =(K99/K101)-1 -> 0.1935483871 | K99: =(J101+2)*18+78 -> 222 | L99: 14 | M99: =(L99-1)*0.6 -> 7.8 | N99: =(L99-1)*0.558 -> 7.254
I100: +1mm height | J100: =(K100/K101)-1 -> 0.09677419355 | K100: =(J101+1)*18+78 -> 204 | M100: 190* exhaust above | N100: 200* exhaust above
F101: BlowDown Calculator | I101: current shroud height | J101: 6 | K101: =J101*18+78 -> 186 | M101: port Compr. Ratio | N101: port Compr. Ratio
F102: peak power RPM | G102: 8000 | I102: -1mm height | J102: =IF(J101>0,(K102/K101)-1," ") -> -0.09677419355 | K102: =(J101-1)*18+78 -> 168 | M102: =(L99-1)*0.514 -> 6.682 | N102: =(L99-1)*0.468 -> 6.084
F103: exhaust port duration | G103: 180 | I103: -2mm height | J103: =IF(J101>1,(K103/K101)-1," ") -> -0.1935483871 | K103: =(J101-2)*18+78 -> 150
F104: transfer port duration | G104: 115 | I104: -3mm height | J104: =IF(J101>2,(K104/K101)-1," ") -> -0.2903225806 | K104: =(J101-3)*18+78 -> 132
F105: blowdown time (ms) | G105: =1000*((G103-G104)/(2*360))*(60/G102) -> 0.6770833333
F106: blowdown degrees | G106: =(G103-G104)/2 -> 32.5
F108: new peak power RPM | G108: 9000
F109: needed blowdown deg | G109: =0.36*G105/(60/G108) -> 36.5625
F110: needed exh/transfer
F111: additional separation | G111: =G109-((G103-G104)/2) -> 4.0625
F112: needed exh duration | G112: =G103+G111 -> 184.0625
C115: Resonant Intake Length Calculator
B116: =IF(AND(D116<3,D119>10000),0.4,IF(D116<3,0.6-(D119-6000)*0.00005,1.3-(D119-6000)*0.00002)) -> 0.52 | C116: How many diffuser cones? (1/2/3) | D116: 2
C117: peak exhaust gas temp celcius | D117: 575
C118: cylinder bore mm | D118: 40
B119: =1/(D119/60) -> 0.007894736842 | C119: top RPM | D119: 7600
B120: =((D120/2)/360)*B119 -> 0.002028508772 | C120: hot exhaust duration | D120: 185
B121: =((D121/2)/360)*B119 -> 0.00125 | C121: hot transfer duration | D121: 114
C122: mm piston to diffuser | D122: 450
C123: with boost port? (Y/N) | D123: Y
B124: =IF(D116=2,171*(B126-((D122*2)/((D117-30)*0.4+343))-(D118*IF(D123="Y",1,3.4))/343-B116*2),0) -> 88.51175824 | C124: Ideal Intake Length mm | D124: =171*(B126-((D122*2)/((D117-30)*0.4+343))-(D118*IF(D123="Y",1,3.4))/343-B116) -> 177.4317582
C125: Start Reversion Wave Return | D125: =(D122*2)/(((D117-30)*0.4+343))+(D118*IF(D123="Y",1,3.4))/343+D124/171 -> 2.758508772
A126: EO to Trans Close | B126: =(B120+B121)*1000 -> 3.278508772 | C126: Peak Reversion Wave Return | D126: =D125+B116 -> 3.278508772
C127: current intake length mm | D127: 125
C128: Peak Reversion Wave Return | D128: =((D122*2)/((D117-30)*0.4+343))+(D118*IF(D123="Y",1,3.4))/343+D127/171+B116 -> 2.971890303
A129: All my 2 stroke calculators
C130: NEEDLE ANGLE FINDER
A131: Needle Diameters Every 3mm | M131: (end of taper dia.)
A132: Dia. 1 | B132: Dia. 2 | C132: Dia. 3 | D132: Dia. 4 | E132: Dia. 5 | F132: Dia. 6 | G132: Dia. 7 | H132: Dia. 8 | I132: Dia. 9 | J132: Dia. 10 | K132: Dia. 11 | L132: Dia. 12 | M132: Dia. 13
A133: 2.51 | B133: 2.41 | C133: 2.57 | D133: 2.57 | E133: 2.53 | F133: 2.49 | G133: 2.45 | H133: 2.41 | I133: 2.37 | J133: 2.28 | K133: 2.19 | L133: 2.07 | M133: 1.95
A134: ANGLES --> | B134: =DEGREES(ATAN((A133-B133)/3)) -> 1.909152433 | C134: -3.052882515 | D134: 0 | E134: 0.7638984609 | F134: 0.7638984609 | G134: 0.7638984609 | H134: 0.7638984609 | I134: 0.7638984609 | J134: 1.718358002 | K134: 1.718358002 | L134: 2.290610043 | M134: 2.290610043 | N134: =M134 -> 2.290610043
B135: =(6*TAN(RADIANS((D134)/2))+C133-B133)/(-2*TAN(RADIANS((B134)/2))+2*TAN(RADIANS((D134)/2))) -> -4.801332963 | C135: 0.6003197018 | D135: -0.000133327408 | F135: -1.205562388e+10 | H135: 2.999893303 | I135: -0.001214902179 | J135: 2.997974039 | K135: -0.004800599709 | L135: 6.283636847e+11
A136: TRANSITION --> | B136: =IF(OR(B135<=0,B135>=3),"",B135) ->  | C136: 0.6003197018 | H136: 2.999893303 | J136: 2.997974039
A138: Needle Diameters Every 5mm | H138: (end of taper dia.) | J138: NEW JET DIAMETER CALCULATOR
A139: Dia. 1 | B139: Dia. 2 | C139: Dia. 3 | D139: Dia. 4 | E139: Dia. 5 | F139: Dia. 6 | G139: Dia. 7 | H139: Dia. 8 | J139: Previous Carb Dia. | K139: Previous M. Jet Dia. | L139: Previous Idle Jet Dia.
A140: 2.515 | B140: 2.515 | C140: 2.4 | D140: 2.1 | E140: 1.8 | F140: 1.5 | G140: 1.2 | H140: 0.9 | J140: 20 | K140: 0.74 | L140: 0.51
A141: ANGLES --> | B141: =DEGREES(ATAN((A140-B140)/5)) -> 0 | C141: 1.31757063 | D141: 3.433630362 | E141: 3.433630362 | F141: 3.433630362 | G141: 3.433630362 | H141: 3.433630362 | I141: =H141 -> 3.433630362 | J141: =3.14*(J140/2)^2 -> 314 | K141: =3.14*(K140/2)^2 -> 0.429866 | L141: =3.14*(L140/2)^2 -> 0.2041785
B142: =(10*TAN(RADIANS((D141)/2))+C140-B140)/(-2*TAN(RADIANS((B141)/2))+2*TAN(RADIANS((D141)/2))) -> 3.081609883 | C142: -0.007294218644 | D142: -5.548745428e+12 | F142: 9710304498248 | G142: 9710304498248 | J142: New Carb Dia. | K142: New M. Jet Dia. | L142: New Idle Jet Dia.
A143: TRANSITION --> | B143: =IF(OR(B142<=0,B142>=3),"",B142) ->  | J143: 24 | K143: =2*SQRT(K144/3.14) -> 0.888 | L143: =2*SQRT(L144/3.14) -> 0.612
J144: =3.14*(J143/2)^2 -> 452.16 | K144: =(K141/J141)*J144 -> 0.61900704 | L144: =(L141/J141)*J144 -> 0.29401704
A145: Needle Diameters Every 10mm | E145: (end of taper dia.)
A146: Dia. 1 | B146: Dia. 2 | C146: Dia. 3 | D146: Dia. 4 | E146: Dia. 5
A147: 2.515 | B147: 2.4 | C147: 1.9 | D147: 1.4 | E147: 0.9
A148: ANGLES --> | B148: =DEGREES(ATAN((A147-B147)/10)) -> 0.6588724201 | C148: =DEGREES(ATAN((B147-C147)/10)) -> 2.862405226 | D148: =DEGREES(ATAN((C147-D147)/10)) -> 2.862405226 | E148: =DEGREES(ATAN((D147-E147)/10)) -> 2.862405226 | F148: =E148 -> 2.862405226
B149: =(20*TAN(RADIANS((D148)/2))+C147-B147)/(-2*TAN(RADIANS((B148)/2))+2*TAN(RADIANS((D148)/2))) -> -0.00811324993 | C149: =(20*TAN(RADIANS((E148)/2))+D147-C147)/(-2*TAN(RADIANS((C148)/2))+2*TAN(RADIANS((E148)/2))) -> 22489894542832 | D149: =(20*TAN(RADIANS((F148)/2))+E147-D147)/(-2*TAN(RADIANS((D148)/2))+2*TAN(RADIANS((F148)/2))) -> 22489894542816 | I149: Port Top Calculator
A150: TRANSITION --> | B150: =IF(OR(B149<=0,B149>=3),"",B149) ->  | C150: =IF(OR(C149<=0,C149>=3),"",C149) ->  | D150: =IF(OR(D149<=0,D149>=3),"",D149) ->  | I150: top section width | J150: 22
I151: top section height | J151: 3
I152: max RPM | J152: 13000
I153: piston stroke | J153: 41.4
B154: Macro Ability Tester | I154: exhaust port duration | J154: 189
B155: Enter Any Number Here: | C155: 7 | I155: max piston m/sec | J155: =(J153*J152)/(18660*(3.12/M168)) -> 31.09807074
I156: Port Top Rating | J156: =180*J151/(J150*J155) -> 0.7892918744
B157: Click On Macro Button
B158: To See If Entered # | F158: Cranking Engine PSI
B159: Appears Here : | F159: engine
B160: 2.2 | F160: compr ratio | G160: feet elevation | H160: cranking psi
F161: 7 | G161: 500 | H161: =((((F161-6)*34.8)+121)*(1-(0.14-(8-F161)*0.02)))/(1+G161*0.000075) -> 132.1484337
A163: Other 2 Stroke Calculators : | C163: dragonfly75.com/moto/calculators.html
F165: Spark Voltage Calculator (Plug Outside Cylinder)
E166: =760-(0.026*G166) -> 747 | F166: Feet Elevation | G166: 500 | H166: Spark Voltage
F167: Max Spark Gap mm | G167: 8 | H167: =12000+(G167-(0.000293*G166+7.52))*(374.5-(0.0128*G166)) -> 12122.76135
F168: Max Spark Plug Gap Needed Inside Cylinder | M168: =IF(J154>=180,3.31+(J154-180)*0.006,IF(J154>=170,3.23+(J154-170)*0.008,IF(J154>=160,3.12+(J154-160)*0.011,IF(J154>=150,3+(J154-150)*0.012,2.95)))) -> 3.364
F169: Cranking PSI | G169: 132 | H169: Spark Gap
H170: =(IF(G169<>175,(175-G169)*0.0325,1))*(0.18+(H167-10000)*0.000225) -> 0.919025772
